[Event "1. Bamberg-Open 2018"]
[Site "Bamberg"]
[Date "2018.05.12"]
[Round "5"]
[White "Mock, Markus"]
[Black "Huemmer, Bernd"]
[Result "0-1"]
[ECO "A10"]
[WhiteElo "1994"]
[BlackElo "2141"]
[Annotator "NA"]
[PlyCount "80"]
[EventDate "2018.??.??"]
[EventType "swiss"]
[EventCountry "GER"]
[SourceTitle "playchess.com"]
[Source "ChessBase"]
[SourceQuality "1"]
[TimeControl "40/5400+30:900+30"]

{[%evp 8,80,73,77,32767,32767,32767,32767,32767,32767,32767,32,32767,32767,27,23,27,31,10,12,19,16,52,46,32767,72,90,78,32767,0,32767,32767,176,32767,199,32767,164,32767,32767,91,107,104,122,32767,32767,32767,125,55,80,32767,25,21,24,0,8,13,32767,32767,0,32767,32767,32767,0,32767,0,32767,-8,-338,-314,-1187,32767,32767,32767,-29983,-29988]} 1. c4 {[%emt 0:00:00]} d6 {[%emt 0:00:15]} 2. Nc3 {[%emt 0:00:00]} Nf6 {[%emt 0:00:25]} 3. Nf3 {[%emt 0:00:01]} e5 {[%emt 0:00:32]} 4. d4 {[%emt 0:00:23]} e4 {[%emt 0:00:33]} 5. Nd2 {[%emt 0:00:37] LiveBook: 109 Games A54: Old Indian Defence with Nf3, but without e4} Qe7 {[%emt 0:01:24]} (5... Bf5 6. Qc2 Bg6 7. e3 c6 8. Be2 d5 9. Qb3 Qd7 10. O-O Be7 11. f3 O-O 12. fxe4 dxe4 13. c5 Na6 {1-0 (43) Nepomniachtchi,I (2729)-Rakhmanov,A (2653) Riadh 2017}) 6. e3 {[%emt 0:01:22]} Nc6 $146 {[%emt 0:01:27]} ({Predecessor:} 6... Bf5 7. Be2 h5 8. b4 g6 9. a4 Bg7 10. Ba3 a6 11. Nb3 O-O 12. b5 axb5 13. cxb5 {½-½ (79) Sonis,F (2422)-Rocha,S (2365) Erice 2016}) 7. Nd5 {[%emt 0:03:34]} Nxd5 {[%emt 0:02:13]} 8. cxd5 {[%emt 0:00:02]} Nd8 {[%emt 0:05:00]} 9. Qc2 {[%emt 0:02:22]} ({White should play} 9. Qa4+ $16 c6 10. dxc6 bxc6 11. d5) 9... f5 {[%emt 0:00:32]} 10. f3 {[%emt 0:04:02]} exf3 {[%emt 0:02:26]} 11. Nxf3 {[%emt 0:01:59]} g6 {[%emt 0:01:57]} 12. Bd3 {[%emt 0:08:12]} Bg7 {[%emt 0:02:40]} 13. O-O {[%emt 0:06:59]} O-O {[%emt 0:01:10]} 14. Re1 {[%emt 0:05:41]} Nf7 {[%emt 0:11:19]} 15. Bd2 {[%emt 0:07:04]} c6 {[%emt 0:12:18]} 16. dxc6 {[%emt 0:06:17]} bxc6 {[%emt 0:00:32]} 17. e4 {[%emt 0:00:20]} f4 {[%emt 0:07:43]} 18. Bxf4 {[%emt 0:03:29]} (18. Qxc6 $16 Rb8 19. Bc3 (19. Bxf4 Bg4 $16)) 18... g5 {[%emt 0:03:09]} 19. Be3 {[%emt 0:02:49]} g4 {[%emt 0:02:06]} 20. Nd2 {[%emt 0:00:20]} Bd7 {[%emt 0:02:21]} 21. e5 {[%emt 0:03:55]} dxe5 {[%emt 0:03:39]} 22. Bxh7+ {[%emt 0:05:40]} Kh8 {[%emt 0:00:01]} 23. Bf5 {[%emt 0:06:09]} (23. Nb3 $142) 23... exd4 {[%emt 0:14:03] [#]} 24. Bh6 $1 {[%emt 0:08:08]} Bxf5 {[%emt 0:00:18]} 25. Bxg7+ {[%emt 0:02:43]} Kxg7 {[%emt 0:00:17]} 26. Qxf5 {[%emt 0:00:05]} Qg5 {[%emt 0:01:02]} 27. Qxg5+ {[%emt 0:01:54]} ({Better is} 27. Qf2 $16) 27... Nxg5 {[%emt 0:00:01]} 28. Rac1 {[%emt 0:00:36]} Rae8 {[%emt 0:02:21]} 29. Rxe8 {[%emt 0:02:02]} Rxe8 {[%emt 0:01:13]} 30. Kf2 {[%emt 0:01:06]} Re6 {[%emt 0:05:11]} 31. Rc5 {[%emt 0:05:25]} Kg6 {[%emt 0:01:09]} 32. Kg3 {[%emt 0:02:19]} Re2 {[%emt 0:05:03]} 33. Rxc6+ {[%emt 0:01:22]} Kh5 {[%emt 0:00:02]} 34. Nf1 {[%emt 0:02:52]} Rxb2 {[%emt 0:01:32]} 35. a4 {[%emt 0:04:13]} d3 {[%emt 0:06:05]} 36. Ne3 {[%emt 0:00:39]} d2 {[%emt 0:01:05]} 37. Nf5 $2 {[%emt 0:01:46]} (37. Rc5 $1 $11) 37... Rb3+ {[%emt 0:00:53]} 38. Kf4 $2 {[%emt 0:00:44]} (38. Kf2 g3+ 39. Ke2 d1=Q+ 40. Kxd1 gxh2 41. Rh6+ Kg4 42. Rxh2 Kxf5 43. Rh6) 38... Ne6+ {[%emt 0:02:32]} 39. Rxe6 {[%emt 0:00:20]} Rb4+ {[%emt 0:00:06]} 40. Kg3 {[%emt 0:01:22]} d1=Q {[%emt 0:15:25]} 0-1